bitfinex/quotes_SOLUSD_20230116
["timestamp","ask_amount","ask_price","bid_price","bid_amount"]
[1673858311827,16.5,23.435,23.42,20.0]
[1673858312033,16.589773,23.436,23.42,20.0]
[1673858312368,16.589773,23.436,23.421,20.0]
[1673858312890,16.589773,23.436,23.422,20.0]
[1673858313081,16.589773,23.436,23.423,20.0]
[1673858313516,32.01,23.446,23.424,20.0]
[1673858313833,17.0,23.44,23.425,20.0]
[1673858314036,17.0,23.44,23.42,20.0]
[1673858314252,73.48196354,23.439,23.413,114.7852]
[1673858314464,17.0,23.438,23.413,114.7852]
[1673858314661,72.02,23.437,23.413,114.7852]
[1673858314881,17.0,23.436,23.413,114.7852]
[1673858315189,52.02,23.435,23.414,20.0]
[1673858315400,17.0,23.434,23.414,20.0]
[1673858315611,16.5,23.434,23.414,20.0]
[1673858316031,53.48196354,23.439,23.414,20.0]
[1673858316242,49.109506,23.44,23.415,20.0]
[1673858316671,20.0,23.439,23.415,20.0]
[1673858316883,32.02,23.438,23.415,20.0]
[1673858317075,32.02,23.438,23.416,20.0]
[1673858317286,53.48196354,23.438,23.417,20.0]
[1673858317697,21.46196354,23.438,23.415,20.0]
[1673858317915,21.46196354,23.438,23.416,20.0]
[1673858318125,21.46196354,23.438,23.417,20.0]
[1673858318664,49.109506,23.44,23.417,20.0]
[1673858318859,17.089506,23.44,23.418,20.0]
[1673858319423,32.02,23.439,23.418,20.0]
[1673858319634,16.589506,23.44,23.418,20.0]
[1673858320469,16.589506,23.44,23.417,20.0]
[1673858320789,73.48196354,23.439,23.4,141.3776]
[1673858321014,23.13,23.43,23.4,118.0776]
[1673858321312,52.03,23.429,23.4,118.0776]
[1673858321525,4.07615,23.428,23.4,118.0776]
[1673858321738,32.04,23.427,23.4,118.0776]
[1673858321948,23.3,23.42,23.39,20.0]
[1673858322158,89.05,23.419,23.39,20.0]
[1673858322367,17.0,23.419,23.39,43.24]
[1673858322688,55.17587012,23.419,23.391,5.03872222]
[1673858322875,16.5,23.419,23.391,5.03872222]
[1673858323087,32.04,23.425,23.4,23.15]
[1673858323296,32.03,23.428,23.401,17.0]
[1673858323518,20.0,23.436,23.402,20.0]
[1673858323727,52.02,23.435,23.403,17.0]
[1673858323941,52.02,23.435,23.405,20.0]
[1673858324146,21.46196354,23.434,23.406,20.0]
[1673858324359,52.03,23.433,23.406,20.0]
[1673858324562,23.13,23.43,23.402,20.0]
[1673858324777,56.10615,23.429,23.393,112.5045]
[1673858324979,20.0,23.428,23.393,112.5045]
[1673858325192,20.0,23.428,23.39,43.3]
[1673858325193,56.11615,23.427,23.39,43.3]
[1673858325396,23.13,23.42,23.387,118.2655]
[1673858325630,23.3,23.41,23.375,19.5]
[1673858325940,74.59811354,23.409,23.37,23.15]
[1673858326151,4.07615,23.408,23.37,23.15]
[1673858326350,32.06,23.407,23.37,23.15]
[1673858326569,17.0,23.406,23.375,20.0]
[1673858326971,53.41136818,23.405,23.375,20.0]
[1673858327182,17.0,23.404,23.375,20.0]
[1673858327409,46.78058634,23.404,23.375,20.0]
[1673858327625,53.41136818,23.403,23.375,20.0]
[1673858327818,17.0,23.402,23.375,20.0]
[1673858328239,53.41136818,23.401,23.375,20.0]
[1673858328452,17.0,23.4,23.375,20.0]
[1673858328971,53.41136818,23.401,23.376,5.03872222]
[1673858329188,53.41136818,23.401,23.377,20.0]
[1673858329400,53.41136818,23.401,23.378,17.0]
[1673858329605,53.41136818,23.401,23.379,20.0]
[1673858329833,53.41136818,23.401,23.38,20.0]
[1673858330357,17.0,23.4,23.38,20.0]
[1673858330756,53.41136818,23.399,23.38,20.0]
[1673858330981,32.05,23.413,23.381,17.0]
[1673858331181,20.0,23.411,23.383,20.0]
[1673858331392,69.06,23.41,23.384,149.7851]
[1673858331612,29.78058634,23.41,23.384,155.41589205]
[1673858331832,29.78058634,23.41,23.39,23.27]
[1673858332035,32.05,23.419,23.392,20.0]
[1673858332357,20.0,23.417,23.394,20.0]
[1673858332545,14.5,23.417,23.395,20.0]
[1673858332751,29.543371,23.416,23.395,20.0]
[1673858332976,32.04,23.422,23.395,20.0]
[1673858333188,20.0,23.421,23.395,20.0]
[1673858333400,32.05,23.42,23.395,20.0]
[1673858333597,61.593371,23.42,23.395,20.0]
[1673858333807,29.543371,23.419,23.391,20.0]
[1673858334012,20.0,23.417,23.391,20.0]
[1673858334221,17.0,23.416,23.389,20.0]
[1673858334432,20.0,23.415,23.39,20.0]
[1673858334664,17.0,23.414,23.391,20.0]
[1673858334850,17.0,23.416,23.392,20.0]
[1673858335273,32.33043745,23.418,23.393,20.0]
[1673858335483,32.04,23.422,23.394,37.0]
[1673858335705,109.7114,23.424,23.396,20.0]
[1673858335916,109.7114,23.424,23.4,23.15]
[1673858336131,32.04,23.427,23.401,20.0]
[1673858336339,20.0,23.434,23.403,20.0]
[1673858336553,32.03,23.431,23.403,20.0]
[1673858336759,32.03,23.431,23.404,20.0]
[1673858336760,34.5,23.43,23.404,20.0]
[1673858336973,32.03,23.429,23.404,20.0]
[1673858337176,20.0,23.428,23.404,20.0]
[1673858337389,20.0,23.428,23.405,20.0]
[1673858337589,20.0,23.428,23.406,20.0]
[1673858337798,20.0,23.428,23.404,20.0]
[1673858338005,20.0,23.428,23.405,20.0]
[1673858338216,20.0,23.428,23.406,20.0]
[1673858339063,20.0,23.43,23.406,20.0]
[1673858339288,17.0,23.429,23.406,20.0]
[1673858339696,49.33043745,23.429,23.406,20.0]
[1673858339910,32.33043745,23.428,23.406,20.0]
[1673858340116,17.0,23.427,23.406,20.0]
[1673858340328,20.0,23.426,23.404,20.0]
[1673858340537,17.0,23.425,23.404,20.0]
[1673858340750,38.46196354,23.425,23.404,20.0]
[1673858341055,20.0,23.423,23.404,20.0]
[1673858341265,17.0,23.422,23.405,20.0]
[1673858341490,21.46196354,23.422,23.407,20.0]
[1673858341699,142.8864,23.435,23.41,23.3]
[1673858341926,20.0,23.434,23.41,23.3]
[1673858342117,20.0,23.436,23.411,20.0]
[1673858342748,21.46196354,23.435,23.411,20.0]
[1673858343183,21.46196354,23.435,23.412,20.0]
[1673858343819,20.0,23.436,23.412,20.0]
[1673858344015,20.0,23.435,23.411,20.0]
[1673858344227,32.03,23.434,23.4,138.8238]
[1673858344555,40.0,23.433,23.402,112.4874]
[1673858344749,32.03,23.432,23.402,112.4874]
[1673858344957,20.0,23.431,23.402,112.4874]
[1673858345291,20.0,23.429,23.403,20.0]
[1673858345507,49.03,23.428,23.403,20.0]
[1673858345690,70.49196354,23.428,23.403,20.0]
[1673858345908,41.46196354,23.427,23.403,20.0]
[1673858346226,70.50196354,23.426,23.403,20.0]
[1673858346426,17.0,23.425,23.403,20.0]
[1673858346639,38.46196354,23.425,23.404,20.0]
[1673858346862,21.46196354,23.424,23.404,20.0]
[1673858347272,20.0,23.422,23.404,20.0]
[1673858347802,20.0,23.422,23.387,114.1237]
[1673858347803,23.3,23.42,23.387,114.1237]
[1673858348003,32.05,23.419,23.387,114.1237]
[1673858348214,37.0,23.418,23.387,114.1237]
[1673858348433,23.13,23.41,23.387,114.1237]
[1673858348647,49.06,23.409,23.387,114.1237]
[1673858348855,70.52196354,23.409,23.387,114.1237]
[1673858349059,21.46196354,23.408,23.378,114.1599]
[1673858349268,37.0,23.407,23.378,114.1599]
[1673858349602,21.46196354,23.406,23.378,114.1599]
[1673858349786,49.07,23.405,23.37,23.3]
[1673858350111,20.0,23.403,23.375,20.0]
[1673858350318,69.07,23.402,23.371,115.0014]
[1673858350522,23.3,23.4,23.371,115.0014]
[1673858350736,49.07,23.399,23.371,115.0014]
[1673858350955,70.53196354,23.399,23.371,115.0014]
[1673858351158,55.63853454,23.398,23.375,20.0]
[1673858351377,17.0,23.397,23.375,20.0]
[1673858351783,34.176571,23.396,23.38,23.09]
[1673858352006,32.05,23.415,23.38,23.09]
[1673858352198,20.0,23.413,23.381,25.86453068]
[1673858352410,21.46196354,23.408,23.381,20.0]
[1673858352621,21.46196354,23.408,23.383,20.0]
[1673858352835,24.065301,23.407,23.384,20.0]
[1673858353053,21.46196354,23.408,23.384,20.0]
[1673858353675,21.46196354,23.408,23.385,20.0]
[1673858354009,21.46196354,23.408,23.386,20.0]
[1673858354726,99.93275963,23.412,23.387,20.0]
[1673858354935,20.0,23.411,23.387,20.0]
[1673858355463,20.0,23.411,23.387,132.7461]
[1673858355674,52.05,23.413,23.387,132.7461]
[1673858356011,49.55,23.413,23.387,132.7461]
[1673858356214,32.05,23.415,23.388,20.0]
[1673858356405,42.92392708,23.416,23.388,25.86453068]
[1673858356616,21.46196354,23.416,23.389,22.86453068]
[1673858356826,21.46196354,23.416,23.39,20.0]
[1673858357139,21.46196354,23.416,23.391,20.0]
[1673858357353,21.46196354,23.416,23.392,20.0]
[1673858357875,32.05,23.419,23.393,20.0]
[1673858358193,20.0,23.423,23.394,20.0]
[1673858358409,21.46196354,23.418,23.394,20.0]
[1673858358844,49.02745812,23.417,23.394,20.0]
[1673858359037,20.0,23.416,23.391,20.0]
[1673858359250,32.05,23.415,23.387,112.7461]
[1673858359467,37.0,23.414,23.387,112.7461]
[1673858359785,32.05,23.413,23.387,112.7461]
[1673858359998,20.0,23.411,23.388,20.0]
[1673858360210,52.06,23.411,23.388,20.0]
[1673858360401,20.0,23.409,23.387,112.7461]
[1673858360612,17.0,23.408,23.387,112.7461]
[1673858361467,17.0,23.409,23.387,112.7461]
[1673858361662,20.0,23.408,23.387,112.7461]
[1673858361880,17.0,23.407,23.387,112.7461]
[1673858362296,42.92392708,23.406,23.387,112.7461]
[1673858362507,20.0,23.405,23.387,112.7461]
[1673858362731,17.0,23.404,23.387,112.7461]
[1673858362935,45.66340967,23.404,23.387,112.7461]
[1673858363147,79.89086779,23.404,23.387,112.7461]
[1673858363349,34.22745812,23.403,23.387,112.7461]
[1673858363559,37.0,23.402,23.387,112.7461]
[1673858363769,17.0,23.402,23.387,112.7461]
[1673858363980,34.22745812,23.401,23.387,112.7461]
[1673858364205,17.0,23.4,23.387,112.7461]
[1673858364604,64.31598018,23.401,23.387,112.7461]
[1673858365047,28.66340967,23.4,23.387,112.7461]
[1673858365259,17.0,23.399,23.387,112.7461]
[1673858365473,64.31598018,23.401,23.387,112.7461]
[1673858365787,34.16852479,23.398,23.362,20.0]
[1673858366100,38.46196354,23.397,23.375,20.0]
[1673858366316,89.59127705,23.397,23.375,20.0]
[1673858366625,51.12931351,23.396,23.375,20.0]
[1673858366836,21.46196354,23.406,23.375,25.86453068]
[1673858367024,31.61007634,23.398,23.375,25.86453068]
[1673858367239,20.0,23.411,23.376,37.0]
[1673858367451,51.61007634,23.41,23.376,37.0]
[1673858367761,51.61007634,23.409,23.377,25.86453068]
[1673858367975,119.32947018,23.409,23.379,20.0]
[1673858368189,67.71939384,23.408,23.38,20.0]
[1673858368401,77.86750664,23.408,23.38,20.0]
[1673858368619,77.86750664,23.407,23.381,20.0]
[1673858368813,77.86750664,23.407,23.382,149.6733]
[1673858369026,32.05,23.415,23.382,155.53783068]
[1673858369237,182.34689718,23.416,23.383,20.0]
[1673858369459,182.34689718,23.416,23.384,37.0]
[1673858369653,182.34689718,23.416,23.384,42.86453068]
[1673858369867,32.04,23.422,23.386,20.0]
[1673858370096,32.04,23.422,23.387,37.0]
[1673858370292,21.46196354,23.421,23.387,154.16263068]
[1673858370499,21.46196354,23.421,23.389,20.0]
[1673858370725,40.0,23.42,23.39,37.0]
[1673858370935,20.0,23.42,23.391,20.0]
[1673858371130,21.46196354,23.419,23.392,17.0]
[1673858371333,21.46196354,23.419,23.393,20.0]
[1673858371585,21.46196354,23.419,23.394,20.0]
[1673858371774,32.04,23.422,23.395,20.0]
[1673858372096,21.46196354,23.429,23.396,20.0]
[1673858372280,20.0,23.427,23.398,20.0]
[1673858372497,32.04,23.426,23.399,20.0]
[1673858372702,20.0,23.425,23.399,20.0]
[1673858373027,21.46196354,23.424,23.399,20.0]
[1673858373232,20.0,23.422,23.396,20.0]
[1673858373442,17.0,23.421,23.396,20.0]
[1673858373666,38.46196354,23.421,23.397,20.0]
[1673858373977,20.0,23.419,23.394,117.665]
[1673858374193,49.05,23.418,23.394,117.665]
[1673858374399,118.12825008,23.418,23.394,117.665]
[1673858374608,21.46196354,23.417,23.394,117.665]
[1673858374825,69.05,23.416,23.394,117.665]
[1673858375131,21.46196354,23.415,23.394,117.665]
[1673858375357,37.0,23.414,23.394,117.665]
[1673858375771,21.46196354,23.413,23.394,117.665]
[1673858375983,17.0,23.412,23.394,117.665]
[1673858376304,20.0,23.411,23.395,20.0]
[1673858376519,17.0,23.41,23.395,20.0]
[1673858377666,20.0,23.409,23.395,20.0]
[1673858377870,17.0,23.408,23.37,20.76]
[1673858378201,32.06,23.407,23.384,111.6522]
[1673858378404,17.0,23.406,23.384,111.6522]
[1673858378597,89.76976384,23.406,23.384,111.6522]
[1673858378809,20.0,23.405,23.384,111.6522]
[1673858379034,17.0,23.404,23.384,111.6522]
[1673858379248,68.3078003,23.404,23.384,111.6522]
[1673858379559,20.0,23.402,23.384,111.6522]
[1673858379776,17.0,23.401,23.384,111.6522]
[1673858380171,17.0,23.402,23.388,20.0]
[1673858380398,17.0,23.402,23.384,111.6522]
[1673858380624,17.0,23.402,23.371,20.0]
[1673858380799,20.0,23.401,23.379,20.0]
[1673858381015,17.0,23.4,23.38,20.0]
[1673858381331,21.46196354,23.405,23.38,20.0]
[1673858381536,21.46196354,23.405,23.348,128.54325507]
[1673858381537,165.83864852,23.368,23.348,128.54325507]
[1673858381867,41.71,23.36,23.263,72.52172474]
[1673858382068,206.16400711,23.367,23.266,72.41756113]
[1673858382069,56.20615,23.359,23.266,72.41756113]
[1673858382281,24.07615,23.358,23.269,72.58164818]
[1673858382598,23.2,23.34,23.3,23.18]
[1673858382806,73.23615,23.339,23.3,23.18]
[1673858383029,24.07615,23.338,23.3,23.18]
[1673858383240,73.23615,23.337,23.3,23.18]
[1673858383557,4.07615,23.336,23.3,23.18]
[1673858383759,20.0,23.334,23.3,23.18]
[1673858384093,69.16,23.333,23.3,23.18]
[1673858384272,90.62196354,23.333,23.3,23.18]
[1673858384473,65.81454591,23.332,23.3,23.18]
[1673858384684,23.4,23.33,23.29,23.4]
[1673858384898,89.17,23.329,23.291,32.22]
[1673858385113,4.07615,23.328,23.291,32.22]
[1673858385317,21.46196354,23.328,23.291,32.22]
[1673858385537,70.63196354,23.327,23.291,32.22]
[1673858385750,20.0,23.326,23.292,20.0]
[1673858385966,17.0,23.325,23.3,23.39]
[1673858386159,21.46196354,23.331,23.31,23.22]
[1673858386369,23.32,23.35,23.31,23.22]
[1673858386370,32.14,23.349,23.31,23.22]
[1673858386619,26.74803331,23.339,23.31,23.22]
[1673858386915,20.0,23.336,23.3,23.39]
[1673858387125,56.23615,23.335,23.3,23.39]
[1673858387327,4.07615,23.334,23.3,23.39]
[1673858387645,23.4,23.33,23.29,23.22]
[1673858387859,93.24615,23.329,23.291,20.0]
[1673858388054,4.07615,23.328,23.291,52.22]
[1673858388265,32.17,23.327,23.291,32.22]
[1673858388479,23.31,23.32,23.29,23.22]
[1673858388806,20.0,23.318,23.29,23.22]
[1673858388995,41.46196354,23.319,23.291,32.22]
[1673858389210,20.0,23.319,23.287,32.23]
[1673858389421,23.4,23.31,23.288,20.0]
[1673858389848,44.91196354,23.31,23.289,32.23]
[1673858390063,95.1319356,23.309,23.288,20.0]
[1673858390258,95.1319356,23.309,23.287,32.23]
[1673858390475,43.25072302,23.308,23.287,32.23]
[1673858390699,17.0,23.307,23.287,32.23]
[1673858391015,23.35,23.3,23.281,108.0632]
[1673858391224,17.0,23.299,23.271,32.25]
[1673858391531,20.0,23.298,23.272,20.0]
[1673858391859,17.0,23.297,23.273,32.25]
[1673858392062,48.56998465,23.297,23.274,20.0]
[1673858392259,17.0,23.297,23.275,32.24]
[1673858392467,17.0,23.299,23.276,20.0]
[1673858393105,38.46196354,23.299,23.275,32.24]
[1673858393432,72.29410289,23.298,23.275,32.24]
[1673858393744,60.25072302,23.297,23.276,20.0]
[1673858394175,17.0,23.297,23.276,20.0]
[1673858394371,17.0,23.298,23.278,20.0]
[1673858394575,17.0,23.299,23.279,20.0]
[1673858395109,23.47,23.3,23.279,20.0]
[1673858395309,55.67,23.31,23.279,20.0]
[1673858395520,41.46196354,23.309,23.28,17.0]
[1673858395725,20.0,23.308,23.282,20.0]
[1673858395941,20.0,23.308,23.282,32.23]
[1673858396164,55.25467675,23.307,23.283,20.0]
[1673858396372,53.66196354,23.308,23.283,20.0]
[1673858396584,20.0,23.307,23.283,20.0]
[1673858396792,21.46196354,23.306,23.275,52.24]
[1673858396998,23.47,23.3,23.276,20.0]
[1673858397197,17.0,23.299,23.277,20.0]
[1673858397639,31.0882901,23.298,23.278,20.0]
[1673858397847,17.0,23.297,23.279,20.0]
[1673858398059,17.0,23.297,23.28,20.0]
[1673858398265,20.0,23.297,23.281,20.0]
[1673858398681,20.0,23.295,23.281,20.0]
[1673858398894,17.0,23.294,23.27,117.2116]
[1673858399307,32.21,23.299,23.27,117.2116]
[1673858399517,304.79907285,23.337,23.272,20.0]
[1673858399518,31.99257305,23.294,23.272,20.0]
[1673858399721,23.3,23.31,23.273,32.25]
[1673858399937,23.3,23.31,23.28,23.47]
[1673858400155,23.3,23.31,23.281,49.24]
[1673858400574,28.58050638,23.31,23.283,20.0]
[1673858400784,66.76378969,23.32,23.29,23.47]
[1673858400995,29.4997265,23.316,23.291,69.22]
[1673858401319,21.46196354,23.319,23.292,20.0]
[1673858401529,32.19,23.318,23.285,32.23]
[1673858401714,23.39,23.31,23.286,20.0]
[1673858402143,20.0,23.308,23.286,20.0]
[1673858402465,71.25512403,23.307,23.286,20.0]
[1673858402678,20.0,23.306,23.285,20.0]
[1673858402892,17.0,23.305,23.284,116.5342]
[1673858403204,130.55547726,23.305,23.284,116.5342]
[1673858403415,32.19,23.316,23.284,116.5342]
[1673858403629,29.56039317,23.304,23.285,52.23]
[1673858403835,29.56039317,23.304,23.285,20.0]
[1673858404053,29.56039317,23.304,23.284,116.5342]
[1673858404359,20.0,23.302,23.284,116.5342]
[1673858404679,28.9277265,23.301,23.283,116.8679]
[1673858404993,21.46196354,23.303,23.275,32.24]
[1673858405305,20.0,23.301,23.276,20.0]
[1673858405537,17.0,23.3,23.277,32.24]
[1673858405730,20.0,23.299,23.277,32.24]
[1673858405942,17.0,23.298,23.274,52.25]
[1673858406146,17.0,23.298,23.273,32.25]
[1673858406147,103.9107464,23.298,23.273,32.25]
[1673858406368,29.47285983,23.297,23.265,32.26]
[1673858406579,36.29615,23.296,23.263,32.26]
[1673858406916,23.39,23.29,23.262,32.26]
[1673858407096,20.0,23.288,23.263,20.0]
[1673858407304,17.0,23.287,23.261,111.4858]
[1673858407537,20.0,23.286,23.261,111.4858]
[1673858407737,17.0,23.285,23.261,111.4858]
[1673858408058,20.0,23.284,23.261,111.4858]
[1673858408258,23.47,23.28,23.253,32.28]
[1673858408480,69.24,23.279,23.246,108.1741]
[1673858408675,23.4,23.27,23.246,108.1741]
[1673858408887,23.4,23.27,23.23,23.47]
[1673858408888,17.0,23.269,23.232,32.3]
[1673858409093,46.39745983,23.269,23.233,108.1741]
[1673858409311,17.0,23.269,23.234,32.3]
[1673858409629,23.47,23.28,23.25,23.47]
[1673858409842,26.94967033,23.278,23.251,32.28]
[1673858410464,26.94967033,23.278,23.252,20.0]
[1673858410786,24.69808433,23.278,23.253,52.28]
[1673858410998,24.69808433,23.278,23.253,20.0]
[1673858410999,37.31925636,23.277,23.253,20.0]
[1673858411207,20.0,23.276,23.252,20.0]
[1673858411416,20.0,23.276,23.253,32.28]
[1673858411733,65.98401626,23.277,23.245,20.0]
[1673858411926,28.29260829,23.275,23.245,20.0]
[1673858412137,28.29260829,23.275,23.246,32.28]
[1673858412349,23.45,23.27,23.245,32.29]
[1673858412577,20.0,23.269,23.241,32.29]
[1673858412902,45.29260829,23.268,23.241,32.29]
[1673858413096,20.0,23.267,23.235,20.0]
[1673858413303,17.0,23.266,23.236,32.3]
[1673858413509,32.24,23.279,23.237,20.0]
[1673858413715,21.46196354,23.274,23.238,32.3]
[1673858413939,20.0,23.27,23.239,20.0]
[1673858414147,20.0,23.27,23.24,32.29]
[1673858414359,52.42236288,23.269,23.24,32.29]
[1673858414676,89.47901924,23.269,23.241,40.0]
[1673858414994,54.05665636,23.268,23.242,32.29]
[1673858415201,17.0,23.268,23.243,20.0]
[1673858415414,17.0,23.268,23.244,20.0]
[1673858415729,37.05665636,23.272,23.246,20.0]
[1673858415929,17.0,23.271,23.247,49.28]
[1673858416252,20.0,23.276,23.249,20.0]
[1673858416444,45.51762795,23.278,23.251,20.0]
[1673858416654,21.46196354,23.283,23.252,52.28]
[1673858416863,21.46196354,23.283,23.253,37.0]
[1673858417085,58.50128656,23.283,23.254,32.27]
[1673858417293,21.46196354,23.283,23.255,20.0]
[1673858417498,20.0,23.284,23.256,20.0]
[1673858417706,20.0,23.284,23.257,20.0]
[1673858417924,20.0,23.284,23.248,32.28]
[1673858417925,32.23,23.283,23.248,32.28]
[1673858418126,112.93304785,23.283,23.25,32.28]
[1673858418341,20.0,23.281,23.248,52.28]
[1673858418561,32.24,23.28,23.248,52.28]
[1673858418754,20.0,23.279,23.248,52.28]
[1673858418966,76.78008656,23.279,23.248,52.28]
[1673858419174,73.78008656,23.278,23.248,52.28]
[1673858419396,20.0,23.277,23.248,20.0]
[1673858419614,17.0,23.276,23.248,20.0]
[1673858419818,52.26958969,23.276,23.251,20.0]
[1673858420232,52.26958969,23.276,23.252,20.0]
[1673858420436,17.0,23.276,23.253,20.0]
[1673858420657,69.37122955,23.276,23.253,20.0]
[1673858420864,17.0,23.276,23.254,20.0]
[1673858421180,56.70737955,23.275,23.252,20.0]
[1673858421387,20.0,23.273,23.241,20.0]
[1673858421609,17.0,23.272,23.242,32.29]
[1673858421811,17.0,23.272,23.243,20.0]
[1673858422021,17.0,23.272,23.244,52.29]
[1673858422226,17.0,23.272,23.245,20.0]
[1673858422441,17.0,23.274,23.246,52.29]
[1673858422658,32.24,23.279,23.247,37.0]
[1673858422886,33.91672302,23.281,23.248,161.28]
[1673858423063,21.46196354,23.284,23.248,32.28]
[1673858423398,48.31945815,23.28,23.249,20.0]
[1673858423612,32.24,23.279,23.244,114.495]
[1673858423796,32.24,23.279,23.239,20.0]
[1673858423797,20.83,23.27,23.239,32.29]
[1673858424011,32.25,23.269,23.236,32.3]
[1673858424327,32.25,23.269,23.23,21.02]
[1673858424328,58.46196354,23.268,23.239,20.0]
[1673858424539,32.26,23.267,23.239,20.0]
[1673858424749,17.0,23.266,23.239,20.0]
[1673858424955,17.0,23.266,23.24,32.29]
[1673858425172,50.69759149,23.266,23.232,32.3]
[1673858425381,20.0,23.264,23.24,20.0]
[1673858425591,17.0,23.263,23.24,20.0]
[1673858425813,67.52497897,23.263,23.24,20.0]
[1673858426131,29.23562795,23.263,23.241,32.29]
[1673858426329,17.0,23.262,23.242,20.0]
[1673858426549,46.23562795,23.262,23.242,20.0]
[1673858426862,46.23562795,23.261,23.242,20.0]
[1673858427080,46.23562795,23.261,23.232,20.0]
[1673858427279,32.09562795,23.26,23.232,134.2353]
[1673858427485,37.28315102,23.261,23.232,134.2353]
[1673858427694,32.24,23.277,23.24,21.01]
[1673858427930,32.24,23.282,23.241,32.29]
[1673858428118,20.0,23.28,23.242,20.0]
[1673858428326,52.24,23.28,23.243,49.29]
[1673858428525,32.24,23.28,23.244,20.0]
[1673858428740,21.46196354,23.279,23.245,49.29]
[1673858429056,21.46196354,23.279,23.246,134.2353]
[1673858429266,21.46196354,23.279,23.248,20.0]
[1673858429592,21.46196354,23.279,23.25,20.0]
[1673858429801,32.23,23.283,23.251,52.28]
[1673858430009,20.0,23.284,23.251,69.28]
[1673858430328,42.92392708,23.282,23.252,20.0]
[1673858430524,42.92392708,23.282,23.254,20.0]
[1673858430738,21.46196354,23.282,23.255,20.0]
[1673858430969,21.46196354,23.282,23.256,20.0]
[1673858431168,32.23,23.286,23.258,20.0]
[1673858431373,21.46196354,23.285,23.259,20.0]
[1673858431575,21.46196354,23.285,23.26,109.3708]
[1673858431789,21.46196354,23.285,23.261,20.0]
[1673858432001,20.0,23.288,23.262,20.0]
[1673858432210,20.0,23.288,23.264,20.0]
[1673858432421,51.53159497,23.287,23.263,20.0]
[1673858432632,20.0,23.286,23.263,20.0]
[1673858432843,71.53159497,23.286,23.262,20.0]
[1673858433064,45.73733393,23.285,23.263,20.0]
[1673858433272,20.0,23.284,23.262,20.0]
[1673858433493,45.73733393,23.284,23.261,20.0]
[1673858433690,30.06963143,23.285,23.262,20.0]
[1673858433892,24.27537039,23.283,23.262,20.0]
[1673858434653,24.27537039,23.283,23.261,40.0]
[1673858434841,24.27537039,23.283,23.261,20.0]
[1673858435283,24.27537039,23.283,23.262,20.0]
[1673858435494,45.73733393,23.283,23.262,20.0]
[1673858435898,25.70537039,23.282,23.262,20.0]